Workbook

Sheet Прмложение №1
C3: Краткосрочный план реализации региональной программы капитального ремонта общего имущества в многоквартирных домах на территории Камышловского городского округа на 2018-2020 годы
A5: I. ПЕРЕЧЕНЬ
A6: многоквартирных домов, которые подлежат капитальному ремонту в рамках Краткосрочного плана реализации Региональной программы капитального ремонта общего имущества в многоквартирных домах Свердловской области на 2018-2020 годы на территории Камышловского городского округа
A7: (наименование муниципального образования)
A9: № п/п | B9: Адрес многоквартирного дома (далее - МКД) | C9: Год | E9: Материал стен | F9: Количество этажей | G9: Количество подъездов | H9: Общая площадь МКД, всего | I9: Площадь помещений МКД | M9: Количество жителей, зарегистрированных в МКД на дату утверждения краткосрочного плана | N9: Стоимость капитального ремонта | O9: Удельная стоимость капитального ремонта 1 кв. м общей площади помещений МКД | P9: Предельная стоимость капитального ремонта 1 кв. м общей площади помещений МКД | Q9: Плановая дата завершения работ
C10: ввода в эксплуатацию | D10: завершения последнего капитального ремонта | I10: Всего | J10: в том числе | L10: В том числе жилых помещений, находящихся в собственности граждан
J11: нежилых помещений | K11: жилых помещений
H12: кв. м | I12: кв. м | J12: кв. м | K12: кв. м | L12: кв. м | M12: человек | N12: рублей | O12: руб./кв. м | P12: руб./кв. м
A13: 1 | B13: 2 | C13: 3 | D13: 4 | E13: 5 | F13: 6 | G13: 7 | H13: 8 | I13: 9 | J13: 10 | K13: 11 | L13: 12 | M13: 13 | N13: 14 | O13: 15 | P13: 16 | Q13: 17
A14: 2018 год
A15: 1 | B15: г. Камышлов, ул. Карла Маркса, д.26 | C15: 1870 | E15: Кирпичные | F15: 3 | G15: 2 | H15: 527.12 | I15: 479.2 | J15: 0 | K15: 479.2 | L15: 349.7 | M15: 32 | N15: 3886993.47 | O15: =N15/H15 -> 7374.02009 | P15: 10600.68 | Q15: 2018
A16: 2 | B16: г. Камышлов, ул. Карла Маркса, д.45 | C16: 1853 | E16: Кирпичные | F16: 2 | G16: 1 | H16: 864.2 | I16: 824.7 | J16: 443.1 | K16: 381.6 | L16: 285.2 | M16: 24 | N16: 1859785.23 | O16: =N16/H16 -> 2152.031046 | P16: 10600.68 | Q16: 2018
A17: 3 | B17: г. Камышлов, ул. Свердлова, д.61 | C17: 1910 | E17: Кирпичные | F17: 3 | G17: 1 | H17: 328 | I17: 296.5 | J17: 0 | K17: 296.5 | L17: 292.3 | M17: 14 | N17: 1067784.74 | O17: =N17/H17 -> 3255.44128 | P17: 10600.68 | Q17: 2018
A18: 4 | B18: г. Камышлов, ул. Черепанова, д.8 | C18: 1938 | E18: Кирпичные | F18: 2 | G18: 3 | H18: 888.3 | I18: 796.4 | J18: 0 | K18: 796.4 | L18: 397 | M18: 28 | N18: 4018690.51 | O18: =N18/H18 -> 4524.02399 | P18: 10600.68 | Q18: 2018
A19: 5 | B19: г. Камышлов, ул. Черепанова, д.10 | C19: 1938 | E19: Кирпичные | F19: 2 | G19: 3 | H19: 875.5 | I19: 785.4 | J19: 0 | K19: 785.4 | M19: 26 | N19: 3998032.37 | O19: =N19/H19 -> 4566.570383 | P19: 10600.68 | Q19: 2018
A20: 6 | B20: г. Камышлов, ул. Гагарина, д.1 | C20: 1951 | E20: Кирпичные | F20: 2 | G20: 2 | H20: 830.3 | I20: 777.7 | J20: 0 | K20: 777.7 | M20: 14 | N20: 2637273.12 | O20: =N20/H20 -> 3176.289438 | P20: 10600.68 | Q20: 2018
A21: 7 | B21: г. Камышлов, ул. Карла Маркса, д.53 | C21: 1952 | E21: =E23 -> Кирпичные | F21: =F23 -> 2 | G21: =G23 -> 2 | H21: 732.2 | I21: 670.2 | J21: 60 | K21: 610.2 | M21: 19 | N21: 2233817.91 | O21: =N21/H21 -> 3050.830251 | P21: =P23 -> 10600.68 | Q21: =Q23 -> 2018
A22: 8 | B22: г. Камышлов, ул. Черепанова, д.12 | C22: 1938 | E22: Кирпичные | F22: 2 | G22: 3 | H22: 877.5 | I22: 787.5 | J22: 0 | K22: 787.5 | M22: 31 | N22: 59163.39 | O22: =N22/H22 -> 67.42266667 | P22: 10600.68 | Q22: 2018
A23: 9 | B23: г. Камышлов, ул. Механизаторов, д.26 | C23: 1962 | E23: Кирпичные | F23: 2 | G23: 2 | H23: 555.06 | I23: 504.6 | J23: 0 | K23: 504.6 | L23: 504.6 | M23: 22 | N23: 591666 | O23: =N23/H23 -> 1065.949627 | P23: 10600.68 | Q23: 2018
A24: Итого за 2018 год | H24: =SUM(H15:H23) -> 6478.18 | N24: =SUM(N15:N23) -> 20353206.74
A25: 2019 год
A26: 1 | B26: г. Камышлов, ул. Черепанова, д.12 | C26: 1938 | E26: Кирпичные | F26: 2 | G26: 3 | H26: 877.5 | I26: 787.5 | J26: 0 | K26: 787.5 | M26: 31 | N26: 2468868.852 | O26: =N26/H26 -> 2813.525757 | Q26: 2019
A27: 2 | B27: г. Камышлов, ул. Ленина, д.16 | C27: 1952 | E27: Кирпичные | F27: 2 | G27: 1 | H27: 415.3 | I27: 382.8 | J27: 104.5 | K27: 278.3 | M27: 13 | N27: 1376972.14 | O27: =N27/H27 -> 3315.608331 | Q27: 2019
A28: 3 | B28: г. Камышлов, ул. Ленина, д.18 | C28: 1953 | E28: Кирпичные | F28: 2 | G28: 1 | H28: 414.6 | I28: 382 | J28: 141.7 | K28: 235.2 | M28: 15 | N28: 1416900.91 | O28: =N28/H28 -> 3417.513049 | Q28: 2019
A29: 4 | B29: г. Камышлов, ул. М.Горького, д.1А | C29: 1953 | E29: Кирпичные | F29: 2 | G29: 2 | H29: 514.1 | I29: 452.7 | J29: 0 | K29: 452.7 | M29: 25 | N29: 1498660.08 | O29: =N29/H29 -> 2915.113947 | Q29: 2019
A30: 5 | B30: г. Камышлов, ул. М.Горького, д.6 | C30: 1953 | E30: Кирпичные | F30: 2 | G30: 1 | H30: 407 | I30: 374.9 | J30: 0 | K30: 374.9 | M30: 17 | N30: 791564.06 | O30: =N30/H30 -> 1944.87484 | Q30: 2019
A31: 6 | B31: г. Камышлов, ул. Карла Маркса, д.2 | C31: 1957 | E31: Кирпичные | F31: 2 | G31: 2 | H31: 718 | I31: 653.6 | J31: 0 | K31: 653.6 | M31: 24 | N31: 2457569.66 | O31: =N31/H31 -> 3422.798969 | Q31: 2019
A32: 7 | B32: г. Камышлов, ул. Вокзальная, д.10 | C32: 1955 | E32: Кирпичные | F32: 2 | G32: 1 | H32: 409.9 | I32: 376.9 | J32: 0 | K32: 376.9 | M32: 19 | N32: 1509232.57 | O32: =N32/H32 -> 3681.953086 | Q32: 2019
A33: 8 | B33: г. Камышлов, ул. Вокзальная, д.12 | C33: 1955 | E33: Кирпичные | F33: 2 | G33: 1 | H33: 417.9 | I33: 386.6 | J33: 0 | K33: 386.6 | M33: 18 | N33: 1307786.31 | O33: =N33/H33 -> 3129.424049 | Q33: 2019
A34: 9 | B34: г. Камышлов, ул. П.Морозова, д.63А | C34: 1955 | E34: Кирпичные | F34: 2 | G34: 1 | H34: 223.6 | I34: 198.3 | J34: 0 | K34: 198.3 | M34: 12 | N34: 679050.39 | O34: =N34/H34 -> 3036.897987 | Q34: 2019
A35: 10 | B35: г. Камышлов, ул. Пролетарская, д.40А | C35: 1958 | E35: Кирпичные | F35: 2 | G35: 2 | H35: 799.1 | I35: 704 | J35: 0 | K35: 704 | M35: 31 | N35: 2457797.55 | O35: =N35/H35 -> 3075.707108 | Q35: 2019
A36: 11 | B36: г. Камышлов, ул. Пролетарская,д. 40Б | C36: 1955 | E36: Кирпичные | F36: 2 | G36: 2 | H36: 778.9 | I36: 692.2 | J36: 0 | K36: 692.2 | M36: 31 | N36: 2135497.71 | O36: =N36/H36 -> 2741.684054 | Q36: 2019
A37: 12 | B37: г. Камышлов, ул. Свердлова, д.75 | C37: 1955 | E37: Кирпичные | F37: 2 | G37: 2 | H37: 692.1 | I37: 631 | J37: 58.2 | K37: 572.8 | M37: 19 | N37: 2461471.84 | O37: =N37/H37 -> 3556.526282 | Q37: 2019
A38: 13 | B38: г. Камышлов, ул. Куйбышева, д.25А | C38: 1957 | E38: Каменные | F38: 2 | G38: 2 | H38: 779.1 | I38: 697.7 | J38: 0 | K38: 697.7 | M38: 42 | N38: 1988543.37 | O38: =N38/H38 -> 2552.359607 | Q38: 2019
A39: 14 | B39: г. Камышлов, ул. Урицкого, д.15А | C39: 1957 | E39: Кирпичные | F39: 2 | G39: 1 | H39: 411.8 | I39: 380.2 | J39: 0 | K39: 380.2 | M39: 19 | N39: 1655092.74 | O39: =N39/H39 -> 4019.16644 | Q39: 2019
A40: Итого за 2019 год | H40: =H26+H27+H28+H29+H30+H31+H32+H33+H34+H35+H36+H37+H38+H39 -> 7858.9 | N40: =SUM(N26:N39) -> 24205008.18
A41: 2020 год
A42: 1 | B42: г. Камышлов, ул. Куйбышева, д.25Б | C42: 1958 | E42: Каменные | F42: 2 | G42: 1 | H42: 444.5 | I42: 400.5 | J42: 0 | K42: 400.5 | L42: 400.5 | M42: 13 | N42: 4805258.22 | O42: =N42/H42 -> 10810.47969 | Q42: 2020
A43: 2 | B43: г. Камышлов, ул. Куйбышева, д.25В | C43: 1958 | E43: Бревно (брус) | F43: 2 | G43: 1 | H43: 546.9 | I43: 498.3 | J43: 0 | K43: 498.3 | L43: 498.3 | M43: 26 | N43: 6834569.49 | O43: =N43/H43 -> 12496.92721 | Q43: 2020
A44: 3 | B44: г. Камышлов, ул. Красных Партизан, д.58А | C44: 1958 | E44: Комбинированные | F44: 2 | G44: 2 | H44: 443.6 | I44: 443.6 | J44: 0 | K44: 443.6 | L44: 291.3 | M44: 18 | N44: 4219848.602 | O44: =N44/H44 -> 9512.733548 | Q44: 2020
A45: 4 | B45: г. Камышлов, ул. Гагарина, д.10 | C45: 1958 | E45: Кирпичные | F45: 2 | G45: 1 | H45: 455.2 | I45: 412.3 | J45: 0 | K45: 412.3 | L45: 412.3 | M45: 22 | N45: 4920930.31 | O45: =N45/H45 -> 10810.47959 | Q45: 2020
A46: 5 | B46: г. Камышлов, ул. Жукова, д.1А | C46: 1959 | E46: Каменные | F46: 2 | G46: 2 | H46: 510.5 | I46: 461.3 | J46: 64.5 | K46: 396.8 | L46: 346.7 | M46: 11 | N46: 5008495.21 | O46: =N46/H46 -> 9810.960255 | Q46: 2020
A47: 6 | B47: г. Камышлов, ул. Кирова, д.44 | C47: 1959 | E47: Кирпичные | F47: 2 | G47: 1 | H47: 293 | I47: 269.3 | J47: 0 | K47: 269.8 | L47: 269.8 | M47: 21 | N47: 2902613.81 | O47: =N47/H47 -> 9906.531775 | Q47: 2020
A48: 7 | B48: г. Камышлов, ул. Молодогвардейская, д.32 | C48: 1959 | E48: Кирпичные | F48: 2 | G48: 1 | H48: 484.2 | I48: 440.4 | J48: 0 | K48: 440.4 | L48: 388.5 | M48: 23 | N48: 4515406.59 | O48: =N48/H48 -> 9325.498947 | Q48: 2020
A49: 8 | B49: г. Камышлов, ул. Пролетарская, д.40В | C49: 1959 | E49: Кирпичные | F49: 2 | G49: 1 | H49: 321.2 | I49: 290.1 | J49: 0 | K49: 290.1 | L49: 255.2 | M49: 13 | N49: 3136120.15 | O49: =N49/H49 -> 9763.761364 | Q49: 2020
A50: 9 | B50: г. Камышлов, ул. Советская, д.2А | C50: 1959 | E50: Каменные | F50: 2 | G50: 2 | H50: 508.4 | I50: 459.2 | J50: 0 | K50: 459.2 | L50: 459.2 | M50: 14 | N50: 5082006.47 | O50: =N50/H50 -> 9996.078816 | Q50: 2020
A51: 10 | B51: г. Камышлов, ул. Жукова, д.1Б | C51: 1960 | E51: Кирпичные | F51: 2 | G51: 1 | H51: 304.8 | I51: 282 | J51: 71.2 | K51: 210.8 | L51: 210.8 | M51: 8 | N51: 3295034.19 | O51: =N51/H51 -> 10810.47963 | Q51: 2020
A52: 11 | B52: г. Камышлов, ул. М.Горького, д.10 | C52: 1960 | E52: Кирпичные | F52: 2 | G52: 1 | H52: 295.3 | I52: 273.6 | J52: 0 | K52: 273.6 | L52: 200.4 | M52: 12 | N52: 2799597.51 | O52: =N52/H52 -> 9480.519844 | Q52: 2020
A53: 12 | B53: г. Камышлов, ул. Механизаторов, д.12 | C53: 1960 | E53: Кирпичные | F53: 2 | G53: 1 | H53: 296.1 | I53: 273 | J53: 0 | K53: 273 | L53: 273 | M53: 20 | N53: 2967476.69 | O53: =N53/H53 -> 10021.87332 | Q53: 2020
A54: 13 | B54: г. Камышлов, ул. Механизаторов, д.24 | C54: 1960 | E54: Кирпичные | F54: 2 | G54: 1 | H54: 302.1 | I54: 280.5 | J54: 0 | K54: 280.5 | L54: 211.3 | M54: 21 | N54: 3032339.56 | O54: =N54/H54 -> 10037.53578 | Q54: 2020
A55: 14 | B55: г. Камышлов, ул. Молодогвардейская, д.23 | C55: 1960 | E55: Кирпичные | F55: 2 | G55: 1 | H55: 328.7 | I55: 301 | J55: 0 | K55: 301 | L55: 301 | M55: 10 | N55: 3225847.12 | O55: =N55/H55 -> 9813.955339 | Q55: 2020
A56: 15 | B56: г. Камышлов, ул. Механизаторов, д.28 | C56: 1959 | E56: Кирпичные | F56: 2 | G56: 1 | H56: 289.8 | I56: 267.8 | J56: 0 | K56: 267.8 | L56: 267.8 | M56: 7 | N56: 2367393.73 | O56: =N56/H56 -> 8169.06049 | Q56: 2020
A57: 16 | B57: г. Камышлов, ул. Молодогвардейская, д.25 | C57: 1960 | E57: Кирпичные | F57: 2 | G57: 1 | H57: 335.3 | I57: 305.8 | J57: 0 | K57: 305.8 | L57: 305.8 | M57: 12 | N57: 3223685.01 | O57: =N57/H57 -> 9614.33048 | Q57: 2020
A58: 17 | B58: г. Камышлов, ул. Гагарина, д.2 | C58: 1959 | E58: Кирпичные | F58: 2 | G58: 1 | H58: 474 | I58: 426.2 | J58: 0 | K58: 426.2 | L58: 426.2 | M58: 14 | N58: 5107951.65 | O58: =N58/H58 -> 10776.2693 | Q58: 2020
A59: 18 | B59: г. Камышлов, ул. Гагарина, д.16 | C59: 1959 | E59: Кирпичные | F59: 2 | G59: 1 | H59: 461.6 | I59: 415 | J59: 0 | K59: 415 | L59: 367.8 | M59: 13 | N59: 4990117.37 | O59: =N59/H59 -> 10810.47957 | Q59: 2020
A60: 19 | B60: г. Камышлов, ул. Гагарина, д.18 | C60: 1959 | E60: Комбинированные | F60: 2 | G60: 1 | H60: 489.5 | I60: 447.5 | J60: 0 | K60: 447.5 | L60: 447.5 | M60: 37 | N60: 4656483.12 | O60: =N60/H60 -> 9512.733647 | Q60: 2020
A61: Итого за 2020 год | H61: =SUM(H42:H60) -> 7584.7 | N61: =SUM(N42:N60) -> 77091174.8
A62: Итого по муниципальному образованию | H62: =H61+H40+H24 -> 21921.78 | N62: =N61+N40+N24 -> 121649389.7

Sheet Приложение № 2
A4: II. ПЕРЕЧЕНЬ
A5: видов услуг и (или) работ по капитальному ремонту общего имущества многоквартирных домов и их стоимости в рамках краткосрочного плана реализации Региональной программы капитального ремонта общего имущества в многоквартирных домах Свердловской области на 2018-2020 годы на территории Камышловского городского округа
A6: (наименование муниципального образования)
A8: № п/п | B8: Адрес многоквартирного дома | C8: Общая стоимость капитального ремонта | D8: Виды ремонта, предусмотренные частью 1 статьи 17 Закона Свердловской области от 19 декабря 2013 года № 127-ОЗ | O8: Виды ремонта, предусмотренные частью 2 статьи 17 Закона от 19 декабря 2013 года № 127-ОЗ
D9: Ремонт внутридомовых инженерных систем | E9: Ремонт или замена лифтового оборудования | G9: Ремонт крыши | I9: Ремонт подвальных помещений | K9: Ремонт фасада | M9: Ремонт фундамента | O9: Утепление фасадов | P9: Переустройство невентилируемой крыши на вентилируемую крышу, устройство выходов на кровлю | Q9: Усиление межэтажных и чердачных перекрытий многоквартирного дома | R9: Усиление ограждающих несущих конструкций многоквартирного дома | S9: Разработка проектной документации на проведение капитального ремонта | T9: Экспертиза проектной документации на проведение капитального ремонта | U9: Строительный контроль
C10: рублей | D10: рублей | E10: единиц | F10: рублей | G10: кв. м | H10: рублей | I10: кв. м | J10: рублей | K10: кв. м | L10: рублей | M10: куб. м | N10: рублей | O10: рублей | P10: рублей | Q10: рублей | R10: рублей | S10: рублей | T10: рублей | U10: рублей
A11: 1 | B11: 2 | C11: 3 | D11: 4 | E11: 5 | F11: 6 | G11: 7 | H11: 8 | I11: 9 | J11: 10 | K11: 11 | L11: 12 | M11: 13 | N11: 14 | O11: 15 | P11: 16 | Q11: 17 | R11: 18 | S11: 19 | T11: 20 | U11: 21
A12: Итого по муниципальному образованию | C12: =C13+C23+C38 -> 121649389.7 | D12: =D13+D23+D38 -> 41978634.59 | E12: =E13+E23+E38 -> 0 | F12: =F13+F23+F38 -> 0 | G12: =G13+G23+G38 -> 9745.68 | H12: =H13+H23+H38 -> 50896736.06 | I12: =I13+I23+I38 -> 310.6 | J12: =J13+J23+J38 -> 7550291.55 | K12: =K13+K23+K38 -> 3879.51 | L12: =L13+L23+L38 -> 17340589.22 | M12: =M13+M23+M38 -> 0 | N12: =N13+N23+N38 -> 0 | O12: =O13+O23+O38 -> 0 | P12: =P13+P23+P38 -> 0 | Q12: =Q13+Q23+Q38 -> 0 | R12: =R13+R23+R38 -> 0 | S12: =S13+S23+S38 -> 1455448.76 | T12: =T13+T23+T38 -> 0 | U12: =U13+U23+U38 -> 2427689.54
A13: Итого за 2018 год | C13: =C14+C15+C16+C17+C18+C19+C20+C21+C22 -> 20353206.74 | D13: =D14+D15+D16+D17+D18+D19+D20+D21+D22 -> 7985126.14 | E13: =E14+E15+E16+E17+E18+E19+E20+E21+E22 -> 0 | F13: =F14+F15+F16+F17+F18+F19+F20+F21+F22 -> 0 | G13: =G14+G15+G16+G17+G18+G19+G20+G21+G22 -> 4226.74 | H13: =H14+H15+H16+H17+H18+H19+H20+H21+H22 -> 8592764.72 | I13: =I14+I15+I16+I17+I18+I19+I20+I21+I22 -> 92.6 | J13: =J14+J15+J16+J17+J18+J19+J20+J21+J22 -> 1369353.42 | K13: =K14+K15+K16+K17+K18+K19+K20+K21+K22 -> 1394.18 | L13: =L14+L15+L16+L17+L18+L19+L20+L21+L22 -> 1633405.34 | M13: =M14+M15+M16+M17+M18+M19+M20+M21+M22 -> 0 | N13: =N14+N15+N16+N17+N18+N19+N20+N21+N22 -> 0 | O13: =O14+O15+O16+O17+O18+O19+O20+O21+O22 -> 0 | P13: =P14+P15+P16+P17+P18+P19+P20+P21+P22 -> 0 | Q13: =Q14+Q15+Q16+Q17+Q18+Q19+Q20+Q21+Q22 -> 0 | R13: =R14+R15+R16+R17+R18+R19+R20+R21+R22 -> 0 | S13: =S14+S15+S16+S17+S18+S19+S20+S21+S22 -> 355158.13 | T13: =T14+T15+T16+T17+T18+T19+T20+T21+T22 -> 0 | U13: =U14+U15+U16+U17+U18+U19+U20+U21+U22 -> 417398.99
A14: 1 | B14: г. Камышлов, ул. Карла Маркса, д.26 | C14: =D14+H14+J14+L14+S14+U14 -> 3886993.47 | D14: 1567202.84 | E14: 0 | F14: 0 | G14: 585.12 | H14: 987203.34 | I14: 0 | J14: 212536.88 | K14: 683.12 | L14: 1100306.34 | M14: 0 | N14: 0 | O14: 0 | P14: 0 | Q14: 0 | R14: 0 | S14: 0 | T14: 0 | U14: 19744.07
A15: 2 | B15: г. Камышлов, ул. Карла Маркса, д.45 | C15: =D15+H15+J15+L15+S15+U15 -> 1859785.23 | D15: 603324.62 | E15: 0 | F15: 0 | G15: 545 | H15: 1105931.4 | I15: 0 | J15: 59376.42 | K15: 0 | L15: 0 | M15: 0 | N15: 0 | O15: 0 | P15: 0 | Q15: 0 | R15: 0 | S15: 52510.29 | T15: 0 | U15: 38642.5
A16: 3 | B16: г. Камышлов, ул. Свердлова, д.61 | C16: =D16+H16+J16+L16+S16+U16 -> 1067784.74 | D16: 444742 | E16: 0 | F16: 0 | G16: 214.76 | H16: 502986.8 | I16: 0 | J16: 76768.44 | K16: 0 | L16: 0 | M16: 0 | N16: 0 | O16: 0 | P16: 0 | Q16: 0 | R16: 0 | S16: 20472.46 | T16: 0 | U16: 22815.04
A17: 4 | B17: г. Камышлов, ул. Черепанова, д.8 | C17: =D17+H17+J17+L17+S17+U17 -> 4018690.51 | D17: 1885649.44 | E17: 0 | F17: 0 | G17: 777.31 | H17: 1789073.52 | I17: 0 | J17: 248469.06 | K17: 0 | L17: 0 | M17: 0 | N17: 0 | O17: 0 | P17: 0 | Q17: 0 | R17: 0 | S17: 59717.02 | T17: 0 | U17: 35781.47
A18: 5 | B18: г. Камышлов, ул. Черепанова, д.10 | C18: =D18+H18+J18+L18+S18+U18 -> 3998032.37 | D18: 1744181.6 | E18: 0 | F18: 0 | G18: 768.5 | H18: 1795172.94 | I18: 0 | J18: 317923.86 | K18: 0 | L18: 0 | M18: 0 | N18: 0 | O18: 0 | P18: 0 | Q18: 0 | R18: 0 | S18: 59238.2 | T18: 0 | U18: 81515.77
A19: 6 | B19: г. Камышлов, ул. Гагарина, д.1 | C19: =D19+H19+J19+L19+S19+U19 -> 2637273.12 | D19: 1108965.18 | E19: 0 | F19: 0 | G19: 703.21 | H19: 1108364.56 | I19: 0 | J19: 247664.3 | K19: 0 | L19: 0 | M19: 0 | N19: 0 | O19: 0 | P19: 0 | Q19: 0 | R19: 0 | S19: 58183.32 | T19: 0 | U19: 114095.76
A20: 7 | B20: г. Камышлов, ул. Карла Маркса, д.53 | C20: =D20+H20+J20+L20+S20+U20 -> 2233817.91 | D20: 631060.46 | E20: 0 | F20: 0 | G20: 632.84 | H20: 1304032.16 | I20: 92.6 | J20: 206614.46 | K20: 0 | L20: 0 | M20: 0 | N20: 0 | O20: 0 | P20: 0 | Q20: 0 | R20: 0 | S20: 45873.45 | T20: 0 | U20: 46237.38
A21: 8 | B21: г. Камышлов, ул. Черепанова, д.12 | C21: =D21+H21+J21+L21+S21+U21 -> 59163.39 | D21: 0 | E21: 0 | F21: 0 | G21: 0 | H21: 0 | I21: 0 | J21: 0 | K21: 0 | L21: 0 | M21: 0 | N21: 0 | O21: 0 | P21: 0 | Q21: 0 | R21: 0 | S21: 59163.39 | T21: 0 | U21: 0
A22: 9 | B22: г. Камышлов, ул. Механизаторов, д.26 | C22: =D22+H22+J22+L22+S22+U22 -> 591666 | D22: 0 | E22: 0 | F22: 0 | G22: 0 | H22: 0 | I22: 0 | J22: 0 | K22: 711.06 | L22: 533099 | M22: 0 | N22: 0 | O22: 0 | P22: 0 | Q22: 0 | R22: 0 | S22: 0 | T22: 0 | U22: 58567
A23: Итого за 2019 год | C23: =C24+C25+C26+C27+C28+C29+C30+C31+C32+C33+C34+C35+C36+C37 -> 24205008.18 | D23: =D24+D25+D26+D27+D28+D29+D30+D31+D32+D33+D34+D35+D36+D37 -> 4350647.06 | E23: =E24+E25+E26+E27+E28+E29+E30+E31+E32+E33+E34+E35+E36+E37 -> 0 | F23: =F24+F25+F26+F27+F28+F29+F30+F31+F32+F33+F34+F35+F36+F37 -> 0 | G23: =G24+G25+G26+G27+G28+G29+G30+G31+G32+G33+G34+G35+G36+G37 -> 5104.24 | H23: =H24+H25+H26+H27+H28+H29+H30+H31+H32+H33+H34+H35+H36+H37 -> 12711791.24 | I23: =I24+I25+I26+I27+I28+I29+I30+I31+I32+I33+I34+I35+I36+I37 -> 218 | J23: =J24+J25+J26+J27+J28+J29+J30+J31+J32+J33+J34+J35+J36+J37 -> 2500113.2 | K23: =K24+K25+K26+K27+K28+K29+K30+K31+K32+K33+K34+K35+K36+K37 -> 1940.33 | L23: =L24+L25+L26+L27+L28+L29+L30+L31+L32+L33+L34+L35+L36+L37 -> 3612574.72 | M23: =M24+M25+M26+M27+M28+M29+M30+M31+M32+M33+M34+M35+M36+M37 -> 0 | N23: =N24+N25+N26+N27+N28+N29+N30+N31+N32+N33+N34+N35+N36+N37 -> 0 | O23: =O24+O25+O26+O27+O28+O29+O30+O31+O32+O33+O34+O35+O36+O37 -> 0 | P23: =P24+P25+P26+P27+P28+P29+P30+P31+P32+P33+P34+P35+P36+P37 -> 0 | Q23: =Q24+Q25+Q26+Q27+Q28+Q29+Q30+Q31+Q32+Q33+Q34+Q35+Q36+Q37 -> 0 | R23: =R24+R25+R26+R27+R28+R29+R30+R31+R32+R33+R34+R35+R36+R37 -> 0 | S23: =S24+S25+S26+S27+S28+S29+S30+S31+S32+S33+S34+S35+S36+S37 -> 519800.93 | T23: =T24+T25+T26+T27+T28+T29+T30+T31+T32+T33+T34+T35+T36+T37 -> 0 | U23: =U24+U25+U26+U27+U28+U29+U30+U31+U32+U33+U34+U35+U36+U37 -> 510081.03
A24: 1 | B24: г. Камышлов, ул. Черепанова, д.12 | C24: =D24+H24+J24+L24+S24+U24 -> 2468868.85 | D24: 0 | E24: 0 | F24: 0 | G24: 0 | H24: 0 | I24: 0 | J24: 317923.86 | K24: 960.4 | L24: 2102535.8 | M24: 0 | N24: 0 | O24: 0 | P24: 0 | Q24: 0 | R24: 0 | S24: 0 | T24: 0 | U24: 48409.19
A25: 2 | B25: г. Камышлов, ул. Ленина, д.16 | C25: =D25+H25+J25+L25+S25+U25 -> 1376972.14 | D25: 169089.28 | E25: 0 | F25: 0 | G25: 362.18 | H25: 927734.88 | I25: 109 | J25: 222687.24 | K25: 0 | L25: 0 | M25: 0 | N25: 0 | O25: 0 | P25: 0 | Q25: 0 | R25: 0 | S25: 31070.51 | T25: 0 | U25: 26390.23
A26: 3 | B26: г. Камышлов, ул. Ленина, д.18 | C26: =D26+H26+J26+L26+S26+U26 -> 1416900.91 | D26: 165341.6 | E26: 0 | F26: 0 | G26: 362.18 | H26: 927734.88 | I26: 109 | J26: 223093.16 | K26: 0 | L26: 0 | M26: 0 | N26: 0 | O26: 0 | P26: 0 | Q26: 0 | R26: 0 | S26: 31399.73 | T26: 0 | U26: 69331.54
A27: 4 | B27: г. Камышлов, ул. М.Горького, д.1А | C27: =D27+H27+J27+L27+S27+U27 -> 1498660.08 | D27: 270670.76 | E27: 0 | F27: 0 | G27: 0 | H27: 0 | I27: 0 | J27: 214977.12 | K27: 518.7 | L27: 945918.68 | M27: 0 | N27: 0 | O27: 0 | P27: 0 | Q27: 0 | R27: 0 | S27: 38462.19 | T27: 0 | U27: 28631.33
A28: 5 | B28: г. Камышлов, ул. М.Горького, д.6 | C28: =D28+H28+J28+L28+S28+U28 -> 791564.06 | D28: 0 | E28: 0 | F28: 0 | G28: 0 | H28: 0 | I28: 0 | J28: 182070.46 | K28: 461.23 | L28: 564120.24 | M28: 0 | N28: 0 | O28: 0 | P28: 0 | Q28: 0 | R28: 0 | S28: 30449.55 | T28: 0 | U28: 14923.81
A29: 6 | B29: г. Камышлов, ул. Карла Маркса, д.2 | C29: =D29+H29+J29+L29+S29+U29 -> 2457569.66 | D29: 826532.18 | E29: 0 | F29: 0 | G29: 603.66 | H29: 1530186.24 | I29: 0 | J29: 0 | K29: 0 | L29: 0 | M29: 0 | N29: 0 | O29: 0 | P29: 0 | Q29: 0 | R29: 0 | S29: 53716.87 | T29: 0 | U29: 47134.37
A30: 7 | B30: г. Камышлов, ул. Вокзальная, д.10 | C30: =D30+H30+J30+L30+S30+U30 -> 1509232.57 | D30: 539683.62 | E30: 0 | F30: 0 | G30: 346.71 | H30: 909890.92 | I30: 0 | J30: 0 | K30: 0 | L30: 0 | M30: 0 | N30: 0 | O30: 0 | P30: 0 | Q30: 0 | R30: 0 | S30: 30666.54 | T30: 0 | U30: 28991.49
A31: 8 | B31: г. Камышлов, ул. Вокзальная, д.12 | C31: =D31+H31+J31+L31+S31+U31 -> 1307786.31 | D31: 157631.48 | E31: 0 | F31: 0 | G31: 355.59 | H31: 916633.44 | I31: 0 | J31: 177226.56 | K31: 0 | L31: 0 | M31: 0 | N31: 0 | O31: 0 | P31: 0 | Q31: 0 | R31: 0 | S31: 31265 | T31: 0 | U31: 25029.83
A32: 9 | B32: г. Камышлов, ул. Павлика Морозова, д.63А | C32: =D32+H32+J32+L32+S32+U32 -> 679050.39 | D32: 0 | E32: 0 | F32: 0 | G32: 153.04 | H32: 521157.62 | I32: 0 | J32: 128177.5 | K32: 0 | L32: 0 | M32: 0 | N32: 0 | O32: 0 | P32: 0 | Q32: 0 | R32: 0 | S32: 16728.57 | T32: 0 | U32: 12986.7
A33: 10 | B33: г. Камышлов, ул. Пролетарская, д.40А | C33: =D33+H33+J33+L33+S33+U33 -> 2457797.55 | D33: 314005.08 | E33: 0 | F33: 0 | G33: 694.2 | H33: 1740606.2 | I33: 0 | J33: 296646.1 | K33: 0 | L33: 0 | M33: 0 | N33: 0 | O33: 0 | P33: 0 | Q33: 0 | R33: 0 | S33: 59515.02 | T33: 0 | U33: 47025.15
A34: 11 | B34: г. Камышлов, ул. Пролетарская, д.40Б | C34: =D34+H34+J34+L34+S34+U34 -> 2135497.71 | D34: 314005.08 | E34: 0 | F34: 0 | G34: 597.5 | H34: 1417111.56 | I34: 0 | J34: 305378.1 | K34: 0 | L34: 0 | M34: 0 | N34: 0 | O34: 0 | P34: 0 | Q34: 0 | R34: 0 | S34: 58273.08 | T34: 0 | U34: 40729.89
A35: 12 | B35: г. Камышлов, ул. Свердлова, д.75 | C35: =D35+H35+J35+L35+S35+U35 -> 2461471.84 | D35: 801883.16 | E35: 0 | F35: 0 | G35: 602.68 | H35: 1298843.7 | I35: 0 | J35: 261716.92 | K35: 0 | L35: 0 | M35: 0 | N35: 0 | O35: 0 | P35: 0 | Q35: 0 | R35: 0 | S35: 51779.18 | T35: 0 | U35: 47248.88
A36: 13 | B36: г. Камышлов, ул. Куйбышева, д.25А | C36: =D36+H36+J36+L36+S36+U36 -> 1988543.37 | D36: 252121.2 | E36: 0 | F36: 0 | G36: 684.86 | H36: 1636785.6 | I36: 0 | J36: 0 | K36: 0 | L36: 0 | M36: 0 | N36: 0 | O36: 0 | P36: 0 | Q36: 0 | R36: 0 | S36: 58288.07 | T36: 0 | U36: 41348.5
A37: 14 | B37: г. Камышлов, ул. Урицкого, д.15А | C37: =D37+H37+J37+L37+S37+U37 -> 1655092.74 | D37: 539683.62 | E37: 0 | F37: 0 | G37: 341.64 | H37: 885106.2 | I37: 0 | J37: 170216.18 | K37: 0 | L37: 0 | M37: 0 | N37: 0 | O37: 0 | P37: 0 | Q37: 0 | R37: 0 | S37: 28186.62 | T37: 0 | U37: 31900.12
A38: Итого за 2020 год | C38: =C39+C40+C41+C42+C43+C44+C45+C46+C47+C48+C49+C50+C51+C52+C53+C54+C55+C56+C57 -> 77091174.8 | D38: =D39+D40+D41+D42+D43+D44+D45+D46+D47+D48+D49+D50+D51+D52+D53+D54+D55+D56+D57 -> 29642861.39 | E38: =E39+E40+E41+E42+E43+E44+E45+E46+E47+E48+E49+E50+E51+E52+E53+E54+E55+E56+E57 -> 0 | F38: =F39+F40+F41+F42+F43+F44+F45+F46+F47+F48+F49+F50+F51+F52+F53+F54+F55+F56+F57 -> 0 | G38: =G39+G40+G41+G42+G43+G44+G45+G46+G47+G48+G49+G50+G51+G52+G53+G54+G55+G56+G57 -> 414.7 | H38: =H39+H40+H41+H42+H43+H44+H45+H46+H47+H48+H49+H50+H51+H52+H53+H54+H55+H56+H57 -> 29592180.1 | I38: =I39+I40+I41+I42+I43+I44+I45+I46+I47+I48+I49+I50+I51+I52+I53+I54+I55+I56+I57 -> 0 | J38: =J39+J40+J41+J42+J43+J44+J45+J46+J47+J48+J49+J50+J51+J52+J53+J54+J55+J56+J57 -> 3680824.93 | K38: =K39+K40+K41+K42+K43+K44+K45+K46+K47+K48+K49+K50+K51+K52+K53+K54+K55+K56+K57 -> 545 | L38: =L39+L40+L41+L42+L43+L44+L45+L46+L47+L48+L49+L50+L51+L52+L53+L54+L55+L56+L57 -> 12094609.16 | M38: =M39+M40+M41+M42+M43+M44+M45+M46+M47+M48+M49+M50+M51+M52+M53+M54+M55+M56+M57 -> 0 | N38: =N39+N40+N41+N42+N43+N44+N45+N46+N47+N48+N49+N50+N51+N52+N53+N54+N55+N56+N57 -> 0 | O38: =O39+O40+O41+O42+O43+O44+O45+O46+O47+O48+O49+O50+O51+O52+O53+O54+O55+O56+O57 -> 0 | P38: =P39+P40+P41+P42+P43+P44+P45+P46+P47+P48+P49+P50+P51+P52+P53+P54+P55+P56+P57 -> 0 | Q38: =Q39+Q40+Q41+Q42+Q43+Q44+Q45+Q46+Q47+Q48+Q49+Q50+Q51+Q52+Q53+Q54+Q55+Q56+Q57 -> 0 | R38: =R39+R40+R41+R42+R43+R44+R45+R46+R47+R48+R49+R50+R51+R52+R53+R54+R55+R56+R57 -> 0 | S38: =S39+S40+S41+S42+S43+S44+S45+S46+S47+S48+S49+S50+S51+S52+S53+S54+S55+S56+S57 -> 580489.7 | T38: =T39+T40+T41+T42+T43+T44+T45+T46+T47+T48+T49+T50+T51+T52+T53+T54+T55+T56+T57 -> 0 | U38: =U39+U40+U41+U42+U43+U44+U45+U46+U47+U48+U49+U50+U51+U52+U53+U54+U55+U56+U57 -> 1500209.52
A39: 1 | B39: г. Камышлов, ул. Куйбышева, д.25Б | C39: =D39+H39+J39+L39+S39+U39 -> 4805258.22 | D39: 1908016.27 | E39: 0 | F39: 0 | G39: 0 | H39: 1844101.6 | I39: 0 | J39: 224770.32 | K39: 0 | L39: 699465.2 | M39: 0 | N39: 0 | O39: 0 | P39: 0 | Q39: 0 | R39: 0 | S39: 35377.76 | T39: 0 | U39: 93527.07
A40: 2 | B40: г. Камышлов, ул. Куйбышева, д.25В | C40: =D40+H40+J40+L40+S40+U40 -> 6834569.49 | D40: 2539934.86 | E40: 0 | F40: 0 | G40: 0 | H40: 2849031.8 | I40: 0 | J40: 269271.68 | K40: 0 | L40: 999645.7 | M40: 0 | N40: 0 | O40: 0 | P40: 0 | Q40: 0 | R40: 0 | S40: 43527.77 | T40: 0 | U40: 133157.68
A41: 3 | B41: г. Камышлов, ул. Красных Партизан, д.58А | C41: =D41+H41+J41+L41+S41+U41 -> 4219848.6 | D41: 1420021.26 | E41: 0 | F41: 0 | G41: 0 | H41: 1647326.34 | I41: 0 | J41: 224315.21 | K41: 0 | L41: 810829.82 | M41: 0 | N41: 0 | O41: 0 | P41: 0 | Q41: 0 | R41: 0 | S41: 35306.12 | T41: 0 | U41: 82049.85
A42: 4 | B42: г. Камышлов, ул. Гагарина, д.10 | C42: =D42+H42+J42+L42+S42+U42 -> 4920930.31 | D42: 1953946 | E42: 0 | F42: 0 | G42: 0 | H42: 1888492.79 | I42: 0 | J42: 230180.98 | K42: 0 | L42: 716302.72 | M42: 0 | N42: 0 | O42: 0 | P42: 0 | Q42: 0 | R42: 0 | S42: 36229.37 | T42: 0 | U42: 95778.45
A43: 5 | B43: г. Камышлов, ул. Жукова, д.1А | C43: =D43+H43+J43+L43+S43+U43 -> 5008495.21 | D43: 1988715.26 | E43: 0 | F43: 0 | G43: 0 | H43: 1922097.34 | I43: 0 | J43: 234276.91 | K43: 0 | L43: 729048.88 | M43: 0 | N43: 0 | O43: 0 | P43: 0 | Q43: 0 | R43: 0 | S43: 36874.05 | T43: 0 | U43: 97482.77
A44: 6 | B44: г. Камышлов, ул. Кирова, д.44 | C44: =D44+H44+J44+L44+S44+U44 -> 2902613.81 | D44: 1152536.27 | E44: 0 | F44: 0 | G44: 0 | H44: 1113928.64 | I44: 0 | J44: 135772.4 | K44: 0 | L44: 422511.6 | M44: 0 | N44: 0 | O44: 0 | P44: 0 | Q44: 0 | R44: 0 | S44: 21369.92 | T44: 0 | U44: 56494.98
A45: 7 | B45: г. Камышлов, ул. Молодогвардейская, д.32 | C45: =D45+H45+J45+L45+S45+U45 -> 4515406.59 | D45: 2014041 | E45: 0 | F45: 0 | G45: 414.7 | H45: 1234163.79 | I45: 0 | J45: 237260.36 | K45: 545 | L45: 904792.65 | M45: 0 | N45: 0 | O45: 0 | P45: 0 | Q45: 0 | R45: 0 | S45: 37343.63 | T45: 0 | U45: 87805.16
A46: 8 | B46: г. Камышлов, ул. Пролетарская, д.40В | C46: =D46+H46+J46+L46+S46+U46 -> 3136120.15 | D46: 1245254.26 | E46: 0 | F46: 0 | G46: 0 | H46: 1203540.77 | I46: 0 | J46: 146694.87 | K46: 0 | L46: 456501.36 | M46: 0 | N46: 0 | O46: 0 | P46: 0 | Q46: 0 | R46: 0 | S46: 23089.06 | T46: 0 | U46: 61039.83
A47: 9 | B47: г. Камышлов, ул. Советская, д.2А | C47: =D47+H47+J47+L47+S47+U47 -> 5082006.47 | D47: 2017904.26 | E47: 0 | F47: 0 | G47: 0 | H47: 1950308.57 | I47: 0 | J47: 237715.47 | K47: 0 | L47: 739749.36 | M47: 0 | N47: 0 | O47: 0 | P47: 0 | Q47: 0 | R47: 0 | S47: 37415.26 | T47: 0 | U47: 98913.55
A48: 10 | B48: г. Камышлов, ул. Жукова, д.1Б | C48: =D48+H48+J48+L48+S48+U48 -> 3295034.19 | D48: 1308354 | E48: 0 | F48: 0 | G48: 0 | H48: 1264526.81 | I48: 0 | J48: 154128.22 | K48: 0 | L48: 479633.28 | M48: 0 | N48: 0 | O48: 0 | P48: 0 | Q48: 0 | R48: 0 | S48: 24259.03 | T48: 0 | U48: 64132.85
A49: 11 | B49: г. Камышлов, ул. М.Горького, д.10 | C49: =D49+H49+J49+L49+S49+U49 -> 2799597.51 | D49: 942092.57 | E49: 0 | F49: 0 | G49: 0 | H49: 1092894.82 | I49: 0 | J49: 148818.68 | K49: 0 | L49: 537933.31 | M49: 0 | N49: 0 | O49: 0 | P49: 0 | Q49: 0 | R49: 0 | S49: 23423.34 | T49: 0 | U49: 54434.79
A50: 12 | B50: г. Камышлов, ул. Механизаторов, д.12 | C50: =D50+H50+J50+L50+S50+U50 -> 2967476.69 | D50: 1178291.27 | E50: 0 | F50: 0 | G50: 0 | H50: 1138820.9 | I50: 0 | J50: 138806.42 | K50: 0 | L50: 431953.2 | M50: 0 | N50: 0 | O50: 0 | P50: 0 | Q50: 0 | R50: 0 | S50: 21847.46 | T50: 0 | U50: 57757.44
A51: 13 | B51: г. Камышлов, ул. Механизаторов, д.24 | C51: =D51+H51+J51+L51+S51+U51 -> 3032339.56 | D51: 1204046.27 | E51: 0 | F51: 0 | G51: 0 | H51: 1163713.16 | I51: 0 | J51: 141840.44 | K51: 0 | L51: 441394.8 | M51: 0 | N51: 0 | O51: 0 | P51: 0 | Q51: 0 | R51: 0 | S51: 22325 | T51: 0 | U51: 59019.89
A52: 14 | B52: г. Камышлов, ул. Молодогвардейская, д.23 | C52: =D52+H52+J52+L52+S52+U52 -> 3225847.12 | D52: 1280882.01 | E52: 0 | F52: 0 | G52: 0 | H52: 1237975.06 | I52: 0 | J52: 150891.93 | K52: 0 | L52: 469562.24 | M52: 0 | N52: 0 | O52: 0 | P52: 0 | Q52: 0 | R52: 0 | S52: 23749.66 | T52: 0 | U52: 62786.22
A53: 15 | B53: г. Камышлов, ул. Механизаторов, д.28 | C53: =D53+H53+J53+L53+S53+U53 -> 2367393.73 | D53: 632224.92 | E53: 0 | F53: 0 | G53: 0 | H53: 1111024.54 | I53: 0 | J53: 135418.43 | K53: 0 | L53: 421410.08 | M53: 0 | N53: 0 | O53: 0 | P53: 0 | Q53: 0 | R53: 0 | S53: 21314.2 | T53: 0 | U53: 46001.56
A54: 16 | B54: г. Камышлов, ул. Молодогвардейская, д.25 | C54: =D54+H54+J54+L54+S54+U54 -> 3223685.01 | D54: 1280023.5 | E54: 0 | F54: 0 | G54: 0 | H54: 1237145.32 | I54: 0 | J54: 150790.79 | K54: 0 | L54: 469247.52 | M54: 0 | N54: 0 | O54: 0 | P54: 0 | Q54: 0 | R54: 0 | S54: 23733.74 | T54: 0 | U54: 62744.14
A55: 17 | B55: г. Камышлов, ул. Гагарина, д.2 | C55: =D55+H55+J55+L55+S55+U55 -> 5107951.65 | D55: 2028206.27 | E55: 0 | F55: 0 | G55: 0 | H55: 1960265.48 | I55: 0 | J55: 238929.08 | K55: 0 | L55: 743526 | M55: 0 | N55: 0 | O55: 0 | P55: 0 | Q55: 0 | R55: 0 | S55: 37606.28 | T55: 0 | U55: 99418.54
A56: 18 | B56: г. Камышлов, ул. Гагарина, д.16 | C56: =D56+H56+J56+L56+S56+U56 -> 4990117.37 | D56: 1981417.99 | E56: 0 | F56: 0 | G56: 0 | H56: 1915044.54 | I56: 0 | J56: 233417.27 | K56: 0 | L56: 726373.76 | M56: 0 | N56: 0 | O56: 0 | P56: 0 | Q56: 0 | R56: 0 | S56: 36738.74 | T56: 0 | U56: 97125.07
A57: 19 | B57: г. Камышлов, ул. Гагарина, д.18 | C57: =D57+H57+J57+L57+S57+U57 -> 4656483.12 | D57: 1566953.15 | E57: 0 | F57: 0 | G57: 0 | H57: 1817777.83 | I57: 0 | J57: 247525.47 | K57: 0 | L57: 894727.68 | M57: 0 | N57: 0 | O57: 0 | P57: 0 | Q57: 0 | R57: 0 | S57: 38959.31 | T57: 0 | U57: 90539.68
